fUSD/lending_fUSD_20250109
["ID","MTS","AMOUNT","RATE_DAILY","PERIOD"]
[348309760,1736441441243,-1603.31,9.796e-05,2]
[348309762,1736441441252,-941.674393,9.796e-05,2]
[348309764,1736441441262,-500.0,9.796e-05,2]
[348309766,1736441441272,-784.78,9.796e-05,2]
[348309769,1736441441281,-500.0,9.796e-05,2]
[348309771,1736441441290,-500.0,9.796e-05,2]
[348309773,1736441441301,-609.64,9.796e-05,2]
[348309775,1736441441310,-500.0,9.796e-05,2]
[348309777,1736441441320,-999.21,9.796e-05,2]
[348309779,1736441441329,-500.0,9.796e-05,2]
[348309781,1736441441339,-870.268303,9.796e-05,2]
[348309782,1736441441349,-691.27,9.796e-05,2]
[348309785,1736441441359,-500.0,9.796e-05,2]
[348309787,1736441441368,-500.0,9.796e-05,2]
[348309789,1736441441378,-1297.89,9.796e-05,2]
[348309790,1736441441387,-211.07718581,9.796e-05,2]
[348309793,1736441441397,-424.11776375,9.796e-05,2]
[348309795,1736441441406,-2533.51701919,9.796e-05,2]
[348309798,1736441441427,-922.61,9.796e-05,2]
[348309800,1736441441438,-433.43298081,9.796e-05,2]
[348309802,1736441441448,-500.0,9.796e-05,2]
[348309804,1736441441460,-500.0,9.796e-05,2]
[348309806,1736441441470,-500.0,9.796e-05,2]
[348309808,1736441441480,-501.19696151,9.796e-05,2]
[348309810,1736441441490,-787.09,9.796e-05,2]
[348309812,1736441441500,-500.0,9.796e-05,2]
[348309814,1736441441510,-725.62,9.796e-05,2]
[348309816,1736441441519,-394.05393598,9.796e-05,2]
[348309818,1736441441533,-105.94606402,9.796e-05,2]
[348309820,1736441441543,-962.05393558,9.796e-05,2]
[348309825,1736441441578,-1382.15606442,9.796e-05,2]
[348309827,1736441441587,-500.0,9.796e-05,2]
[348309829,1736441441597,-500.0,9.796e-05,2]
[348309831,1736441441606,-500.0,9.796e-05,2]
[348309833,1736441441616,-500.0,9.796e-05,2]
[348309835,1736441441625,-660.24,9.796e-05,2]
[348309837,1736441441635,-500.0,9.796e-05,2]
[348309839,1736441441644,-500.0,9.796e-05,2]
[348309841,1736441441653,-500.0,9.796e-05,2]
[348309843,1736441441662,-1062.57,9.796e-05,2]
[348309844,1736441441671,-901.9,9.796e-05,2]
[348309847,1736441441680,-500.0,9.796e-05,2]
[348309849,1736441441690,-500.0,9.796e-05,2]
[348309851,1736441441700,-695.31,9.796e-05,2]
[348309853,1736441441710,-500.0,9.796e-05,2]
[348309855,1736441441720,-500.0,9.796e-05,2]
[348309857,1736441441730,-500.0,9.796e-05,2]
[348309859,1736441441739,-647.79075703,9.796e-05,2]
[348309860,1736441441749,-500.0,9.796e-05,2]
[348309862,1736441441758,-500.0,9.796e-05,2]
[348309864,1736441441768,-500.0,9.796e-05,2]
[348309865,1736441441777,-500.0,9.796e-05,2]
[348309866,1736441441786,-500.0,9.796e-05,2]
[348309867,1736441441798,-500.0,9.796e-05,2]
[348309868,1736441441807,-500.0,9.796e-05,2]
[348309869,1736441441816,-500.0,9.796e-05,2]
[348309870,1736441441825,-532.84,9.796e-05,2]
[348309871,1736441441835,-557.66,9.796e-05,2]
[348309872,1736441441844,-500.0,9.796e-05,2]
[348309874,1736441441853,-500.0,9.796e-05,2]
[348309876,1736441441863,-500.0,9.796e-05,2]
[348309878,1736441441872,-459.53317855,9.796e-05,2]
[348309883,1736441441909,-40.46682145,9.796e-05,2]
[348309885,1736441441919,-500.0,9.796e-05,2]
[348309887,1736441441930,-500.0,9.796e-05,2]
[348309889,1736441441939,-186.74712549,9.796e-05,2]
[348309902,1736441442061,-313.25287451,9.796e-05,2]
[348309904,1736441442071,-426.47942827,9.796e-05,2]
[348309907,1736441442083,-73.52057173,9.796e-05,2]
[348309909,1736441442093,-590.63,9.796e-05,2]
[348309911,1736441442103,-676.47,9.796e-05,2]
[348309913,1736441442113,-500.0,9.796e-05,2]
[348309915,1736441442123,-5512.17,9.796e-05,2]
[348309917,1736441442133,-500.0,9.796e-05,2]
[348309919,1736441442143,-1014.36,9.796e-05,2]
[348309921,1736441442152,-500.0,9.796e-05,2]
[348309923,1736441442160,-500.0,9.796e-05,2]
[348309925,1736441442170,-500.0,9.796e-05,2]
[348309927,1736441442180,-540.3,9.796e-05,2]
[348309929,1736441442190,-500.0,9.796e-05,2]
[348309931,1736441442199,-500.0,9.796e-05,2]
[348309933,1736441442210,-500.0,9.796e-05,2]
[348309935,1736441442220,-4726.09,9.796e-05,2]
[348309937,1736441442229,-500.0,9.796e-05,2]
[348309939,1736441442238,-500.0,9.796e-05,2]
[348309941,1736441442248,-501.08,9.796e-05,2]
[348309943,1736441442257,-500.0,9.796e-05,2]
[348309945,1736441442267,-500.0,9.796e-05,2]
[348309947,1736441442277,-1135.75,9.796e-05,2]
[348309949,1736441442287,-1007.34,9.796e-05,2]
[348309951,1736441442299,-569.44,9.796e-05,2]
[348309953,1736441442309,-500.0,9.796e-05,2]
[348309955,1736441442319,-588.54,9.796e-05,2]
[348309957,1736441442328,-500.0,9.796e-05,2]
[348309959,1736441442338,-500.0,9.796e-05,2]
[348309961,1736441442347,-500.0,9.796e-05,2]
[348309963,1736441442357,-165.324342,9.796e-05,2]
[348309965,1736441442367,-884.79,9.796e-05,2]
[348309967,1736441442377,-584.57,9.796e-05,2]
[348309969,1736441442386,-500.0,9.796e-05,2]
[348309971,1736441442395,-547.98,9.796e-05,2]
[348309973,1736441442405,-500.0,9.796e-05,2]
[348309975,1736441442415,-357.34626909,9.796e-05,2]
[348309977,1736441442424,-724.67,9.796e-05,2]
[348309979,1736441442433,-2877.28,9.796e-05,2]
[348309981,1736441442443,-1487.4,9.796e-05,2]
[348309983,1736441442454,-500.0,9.796e-05,2]
[348309985,1736441442463,-637.1,9.796e-05,2]
[348309987,1736441442474,-639.61,9.796e-05,2]
[348309989,1736441442484,-1213.16,9.796e-05,2]
[348310006,1736441442494,-539.81,9.796e-05,2]
[348310007,1736441442743,-500.0,9.796e-05,2]
[348310008,1736441442754,-500.0,9.796e-05,2]
[348310009,1736441442763,-503.33122706,9.796e-05,2]
[348310010,1736441442773,-500.0,9.796e-05,2]
[348310011,1736441442783,-500.0,9.796e-05,2]
[348310012,1736441442793,-603.8,9.796e-05,2]
[348310013,1736441442804,-500.0,9.796e-05,2]
[348310014,1736441442814,-500.0,9.796e-05,2]
[348310015,1736441442822,-500.0,9.796e-05,2]
[348310016,1736441442832,-500.0,9.796e-05,2]
[348310017,1736441442841,-507.27,9.796e-05,2]
[348310019,1736441442851,-5704.59,9.796e-05,2]
[348310021,1736441442861,-1361.48,9.796e-05,2]
[348310023,1736441442871,-500.0,9.796e-05,2]
[348310025,1736441442881,-500.0,9.796e-05,2]
[348310027,1736441442890,-500.25,9.796e-05,2]
[348310029,1736441442900,-500.0,9.796e-05,2]
[348310031,1736441442911,-579.83,9.796e-05,2]
[348310033,1736441442921,-875.06,9.796e-05,2]
[348310035,1736441442931,-500.0,9.796e-05,2]
[348310038,1736441442941,-730.94,9.796e-05,2]
[348310040,1736441442951,-500.0,9.796e-05,2]
[348310042,1736441442961,-500.0,9.796e-05,2]
[348310044,1736441442970,-500.0,9.796e-05,2]
[348310047,1736441442980,-500.0,9.796e-05,2]
[348310050,1736441442989,-500.0,9.796e-05,2]
[348310053,1736441442998,-500.0,9.796e-05,2]
[348310056,1736441443007,-500.0,9.796e-05,2]
[348310058,1736441443017,-500.0,9.796e-05,2]
[348310060,1736441443026,-773.49,9.796e-05,2]
[348310062,1736441443035,-500.0,9.796e-05,2]
[348310065,1736441443044,-500.0,9.796e-05,2]
[348310067,1736441443058,-500.0,9.796e-05,2]
[348310069,1736441443067,-975.6,9.796e-05,2]
[348310071,1736441443077,-500.0,9.796e-05,2]
[348310073,1736441443086,-608.49427626,9.796e-05,2]
[348310075,1736441443096,-998.39,9.796e-05,2]
[348310077,1736441443105,-500.0,9.796e-05,2]
[348310079,1736441443114,-701.43,9.796e-05,2]
[348310081,1736441443124,-500.0,9.796e-05,2]
[348310083,1736441443134,-500.0,9.796e-05,2]
[348310085,1736441443143,-500.0,9.796e-05,2]
[348310087,1736441443152,-500.0,9.796e-05,2]
[348310089,1736441443162,-500.0,9.796e-05,2]
[348310091,1736441443172,-500.0,9.796e-05,2]
[348310093,1736441443181,-500.0,9.796e-05,2]
[348310095,1736441443191,-500.0,9.796e-05,2]
[348310097,1736441443200,-500.0,9.796e-05,2]
[348310100,1736441443210,-500.0,9.796e-05,2]
[348310102,1736441443219,-1565.83,9.796e-05,2]
[348310104,1736441443229,-500.0,9.796e-05,2]
[348310106,1736441443239,-500.0,9.796e-05,2]
[348310108,1736441443248,-500.0,9.796e-05,2]
[348310110,1736441443258,-500.0,9.796e-05,2]
[348310112,1736441443268,-500.0,9.796e-05,2]
[348310114,1736441443277,-500.0,9.796e-05,2]
[348310116,1736441443287,-500.0,9.796e-05,2]
[348310118,1736441443296,-656.29,9.796e-05,2]
[348310120,1736441443308,-1916.01,9.796e-05,2]
[348310122,1736441443317,-503.99079651,9.796e-05,2]
[348310124,1736441443327,-594.19,9.796e-05,2]
[348310126,1736441443337,-500.0,9.796e-05,2]
[348310128,1736441443346,-500.0,9.796e-05,2]
[348310130,1736441443356,-500.0,9.796e-05,2]
[348310132,1736441443365,-500.0,9.796e-05,2]
[348310134,1736441443375,-500.0,9.796e-05,2]
[348310136,1736441443385,-1153.48,9.796e-05,2]
[348310138,1736441443395,-500.0,9.796e-05,2]
[348310140,1736441443405,-2227.16,9.796e-05,2]
[348310142,1736441443414,-500.0,9.796e-05,2]
[348310144,1736441443424,-1176.86,9.796e-05,2]
[348310146,1736441443433,-500.0,9.796e-05,2]
[348310148,1736441443443,-500.0,9.796e-05,2]
[348310150,1736441443455,-500.0,9.796e-05,2]
[348310152,1736441443465,-500.0,9.796e-05,2]
[348310154,1736441443474,-500.0,9.796e-05,2]
[348310156,1736441443484,-500.0,9.796e-05,2]
[348310158,1736441443494,-500.0,9.796e-05,2]
[348310160,1736441443504,-500.0,9.796e-05,2]
[348310162,1736441443513,-500.0,9.796e-05,2]
[348310164,1736441443524,-1519.67,9.796e-05,2]
[348310166,1736441443533,-500.0,9.796e-05,2]
[348310168,1736441443543,-2093.33,9.796e-05,2]
[348310170,1736441443554,-500.0,9.796e-05,2]
[348310172,1736441443563,-741.11,9.796e-05,2]
[348310174,1736441443573,-500.0,9.796e-05,2]
[348310176,1736441443582,-500.0,9.796e-05,2]
[348310178,1736441443591,-500.0,9.796e-05,2]
[348310180,1736441443600,-500.0,9.796e-05,2]
[348310182,1736441443610,-500.0,9.796e-05,2]
[348310184,1736441443619,-2694.41,9.796e-05,2]
[348310186,1736441443629,-3351.45,9.796e-05,2]
[348310188,1736441443638,-581.07,9.796e-05,2]
[348310190,1736441443647,-500.0,9.797e-05,2]
[348310192,1736441443657,-500.0,9.797e-05,2]
[348310194,1736441443666,-500.0,9.797e-05,2]
[348310197,1736441443675,-500.0,9.797e-05,2]
[348310200,1736441443685,-494.61756419,9.797e-05,2]
[348310203,1736441443695,-500.0,9.797e-05,2]
[348310205,1736441443705,-500.0,9.797e-05,2]
[348310207,1736441443714,-500.0,9.797e-05,2]
[348310209,1736441443724,-500.0,9.797e-05,2]
[348310211,1736441443733,-500.0,9.797e-05,2]
[348310213,1736441443742,-500.0,9.797e-05,2]
[348310215,1736441443752,-500.0,9.797e-05,2]
[348310217,1736441443762,-500.0,9.797e-05,2]
[348310219,1736441443771,-500.0,9.797e-05,2]
[348310221,1736441443781,-500.0,9.797e-05,2]
[348310223,1736441443791,-500.0,9.797e-05,2]
[348310225,1736441443803,-386.51829599,9.797e-05,2]
[348310227,1736441443812,-500.0,9.797e-05,2]
[348310229,1736441443822,-500.0,9.797e-05,2]
[348310231,1736441443831,-500.0,9.797e-05,2]
[348310233,1736441443840,-500.0,9.797e-05,2]
[348310235,1736441443850,-500.0,9.797e-05,2]
[348310237,1736441443859,-500.0,9.797e-05,2]
[348310239,1736441443868,-500.0,9.797e-05,2]
[348310241,1736441443878,-529.99,9.797e-05,2]
[348310242,1736441443887,-500.0,9.797e-05,2]
[348310243,1736441443897,-500.0,9.797e-05,2]
[348310244,1736441443906,-500.0,9.797e-05,2]
[348310245,1736441443915,-500.0,9.797e-05,2]
[348310246,1736441443925,-564.43,9.797e-05,2]
[348310247,1736441443934,-500.0,9.797e-05,2]
[348310248,1736441443944,-500.0,9.797e-05,2]
[348310250,1736441443953,-500.0,9.797e-05,2]
[348310252,1736441443963,-569.24,9.797e-05,2]
[348310253,1736441443971,-500.0,9.797e-05,2]
[348310255,1736441443981,-500.0,9.797e-05,2]
[348310257,1736441443990,-500.0,9.797e-05,2]
[348310259,1736441444000,-500.0,9.797e-05,2]
[348310261,1736441444010,-523.75,9.797e-05,2]
[348310264,1736441444020,-500.0,9.797e-05,2]
[348310266,1736441444029,-500.0,9.797e-05,2]
[348310268,1736441444038,-500.0,9.797e-05,2]
[348310270,1736441444049,-1090.39,9.797e-05,2]
[348310272,1736441444061,-631.3,9.797e-05,2]
[348310274,1736441444071,-500.0,9.797e-05,2]
[348310276,1736441444080,-563.96,9.797e-05,2]
[348310278,1736441444089,-500.0,9.797e-05,2]
[348310280,1736441444099,-830.28,9.797e-05,2]
[348310281,1736441444108,-515.92,9.797e-05,2]
[348310283,1736441444118,-500.0,9.797e-05,2]
[348310285,1736441444128,-611.23,9.797e-05,2]
[348310287,1736441444138,-845.42,9.797e-05,2]
[348310289,1736441444147,-500.0,9.797e-05,2]
[348310291,1736441444156,-1107.02,9.797e-05,2]
[348310293,1736441444165,-885.0,9.797e-05,2]
[348310295,1736441444175,-1251.14,9.797e-05,2]
[348310297,1736441444184,-744.19,9.797e-05,2]
[348310299,1736441444194,-500.0,9.797e-05,2]
[348310301,1736441444203,-628.0,9.797e-05,2]
[348310303,1736441444213,-500.0,9.797e-05,2]
[348310305,1736441444223,-1456.64,9.797e-05,2]
[348310307,1736441444232,-733.74,9.797e-05,2]
[348310309,1736441444241,-1452.42,9.797e-05,2]
[348310311,1736441444250,-2541.11,9.797e-05,2]
[348310313,1736441444260,-500.0,9.797e-05,2]
[348310315,1736441444269,-1371.36,9.797e-05,2]
[348310317,1736441444278,-2305.56,9.797e-05,2]
[348310319,1736441444287,-500.0,9.797e-05,2]
[348310321,1736441444298,-674.85,9.797e-05,2]
[348310323,1736441444309,-500.0,9.797e-05,2]
[348310325,1736441444319,-737.47,9.797e-05,2]
[348310327,1736441444328,-500.0,9.797e-05,2]
[348310329,1736441444338,-500.0,9.797e-05,2]
[348310331,1736441444347,-2187.25,9.797e-05,2]
[348310333,1736441444357,-818.96,9.797e-05,2]
[348310335,1736441444367,-2081.65,9.797e-05,2]
[348310336,1736441444375,-500.0,9.797e-05,2]
[348310337,1736441444385,-2838.32,9.797e-05,2]
[348310338,1736441444394,-5040.93,9.797e-05,2]
[348310339,1736441444403,-1701.34,9.797e-05,2]
[348310340,1736441444412,-500.0,9.797e-05,2]
[348310341,1736441444421,-811.8,9.797e-05,2]
[348310342,1736441444430,-2409.29,9.797e-05,2]
[348310343,1736441444439,-546.38,9.797e-05,2]
[348310345,1736441444448,-2443.67,9.797e-05,2]
[348310347,1736441444462,-2955.96,9.797e-05,2]
[348310349,1736441444471,-807.32,9.797e-05,2]
[348310350,1736441444480,-951.84,9.798e-05,2]
[348310351,1736441444491,-951.84,9.798e-05,2]
[348310352,1736441444500,-586.19,9.798e-05,2]
[348310353,1736441444509,-1510.51,9.798e-05,2]
[348310354,1736441444519,-816.63,9.798e-05,2]
[348310355,1736441444530,-2440.13,9.798e-05,2]
[348310356,1736441444542,-2048.03,9.798e-05,2]
[348310357,1736441444553,-2748.95,9.798e-05,2]
[348310358,1736441444562,-4998.03,9.798e-05,2]
[348310359,1736441444571,-12407.55,9.798e-05,2]
[348310360,1736441444581,-1891.85,9.798e-05,2]
[348310361,1736441444590,-754.63,9.798e-05,2]
[348310362,1736441444600,-1072.78,9.798e-05,2]
[348310363,1736441444609,-3521.15,9.798e-05,2]
[348310364,1736441444618,-500.0,9.798e-05,2]
[348310366,1736441444627,-1086.63,9.798e-05,2]
[348310367,1736441444638,-1549.11,9.798e-05,2]
[348310368,1736441444648,-611.89,9.798e-05,2]
[348310369,1736441444658,-1000.0,9.798e-05,2]
[348310370,1736441444667,-2274.81,9.798e-05,2]
[348310371,1736441444676,-1114.39,9.798e-05,2]
[348310372,1736441444686,-500.0,9.799e-05,2]
[348310374,1736441444696,-3151.26,9.799e-05,2]
[348310376,1736441444705,-2445.76,9.799e-05,2]
[348310378,1736441444714,-772.01,9.8e-05,2]
[348310380,1736441444723,-769.67,9.8e-05,2]
[348310382,1736441444733,-672.36,9.835e-05,2]
[348310384,1736441444742,-875.22,9.836e-05,2]
[348310386,1736441444752,-150.0,9.836e-05,2]
[348310388,1736441444761,-1959.15,9.836e-05,2]
[348310390,1736441444770,-150.0,9.836e-05,2]
[348310392,1736441444779,-150.0,9.836e-05,2]
[348310394,1736441444788,-979.7,9.836e-05,2]
[348310396,1736441444797,-150.0,9.836e-05,2]
[348310398,1736441444809,-617.05,9.836e-05,2]
[348310400,1736441444818,-301.13,9.836e-05,2]
[348310402,1736441444827,-361.29,9.836e-05,2]
[348310404,1736441444838,-150.0,9.866e-05,2]
[348310406,1736441444847,-304.3047,9.899e-05,2]
[348310408,1736441444857,-3055.2678,9.9e-05,2]
[348310410,1736441444865,-882.79282991,9.907e-05,2]
[348310412,1736441444874,-150.0,9.913e-05,2]
[348310414,1736441444884,-177.05035252,9.97e-05,2]
[348310416,1736441444893,-151.83219579,9.973e-05,2]
[348310418,1736441444903,-152.06923266,9.973e-05,2]
[348310420,1736441444912,-500.0,9.973e-05,2]
[348310422,1736441444921,-502.21299666,9.973e-05,2]
[348310424,1736441444931,-96986.66644243,9.988e-05,2]
[348310426,1736441444941,-130520.94881379,9.999e-05,2]
[348310428,1736441445347,-1862.54424,9.999e-05,2]
[348310429,1736441445360,-15375.90460138,9.999e-05,2]
[348310430,1736441445383,-500.0,9.999e-05,2]
[348310431,1736441445394,-2197.83539945,9.999e-05,2]
[348310432,1736441445405,-4128.63986883,9.999e-05,2]
[348310433,1736441445416,-3933.36463944,9.999e-05,2]
[348310434,1736441445429,-2288.91045091,9.999e-05,2]
[348310435,1736441445440,-438.37999999,9.999e-05,2]
[348310436,1736441445456,-563.992002,9.999e-05,2]
[348310437,1736441445467,-463.95250134,9.999e-05,2]
[348310438,1736441445478,-294.766356,9.999e-05,2]
[348310439,1736441445490,-16536.90185613,9.999e-05,2]
[348310440,1736441445513,-1042.36436997,9.999e-05,2]
[348310441,1736441445567,-1086.00001,9.999e-05,2]
[348310442,1736441445578,-335.17470444,9.999e-05,2]
[348310443,1736441445589,-342.40172527,9.999e-05,2]
[348310444,1736441445600,-5059.3755369,9.999e-05,2]
[348310445,1736441445664,-6905.45253584,9.999e-05,2]
[348310446,1736441445753,-3555.0,9.999e-05,2]
[348310447,1736441445764,-485.365,9.999e-05,2]
[348310448,1736441445809,-838.670005,9.999e-05,2]
[348310449,1736441445820,-3708.66001441,9.999e-05,2]
[348310450,1736441445829,-500.0,9.999e-05,2]
[348310451,1736441445839,-3693.01655832,0.0001,2]
[348310452,1736441445852,-4707.18212,0.0001,2]
[348310453,1736441445870,-644.82818535,0.0001,2]
[348310454,1736441445881,-3252.55914408,0.0001,2]
[348310455,1736441445892,-2828.04073206,0.0001,2]
[348310456,1736441445903,-331.43,0.0001,2]
[348310457,1736441445914,-256870.20336438,0.0001,2]
[348310486,1736441446734,-437.28,9.01e-05,2]
[348310488,1736441446755,-934.94,9.795e-05,2]
[348310490,1736441446776,-500.0,9.795e-05,2]
[348310492,1736441446798,-1727.68173721,0.0001,2]
[348310494,1736441446824,-49976.6735233,0.0001,2]
[348310496,1736441446852,-364.73,0.0001,2]
[348310498,1736441446877,-1257533.08013818,0.0001,2]
[348310500,1736441446898,-5309.2795951,0.0001,2]
[348310502,1736441446920,-84522.81730602,0.0001,2]
[348310504,1736441446942,-4508.09262966,0.0001,2]
[348310506,1736441446964,-52405.12092941,0.0001,2]
[348310508,1736441446984,-22670.56152296,0.0001,2]
[348310510,1736441447001,-158013.45649341,0.0001,2]
[348310512,1736441447015,-1702.31460847,0.0001,2]
[348310514,1736441447025,-214.05447509,0.0001,2]
[348310516,1736441447034,-2614.63029374,0.0001,2]
[348310518,1736441447043,-812.82421663,0.0001,2]
[348310520,1736441447054,-2000.0,0.0001,2]
[348310522,1736441447063,-380.85366561,0.0001,2]
[348310524,1736441447072,-360.24307835,0.0001,2]
[348310526,1736441447081,-177.05035253,0.0001,2]
[348310528,1736441447090,-3000.0,0.0001,2]
[348310530,1736441447100,-882.79282995,0.0001,2]
[348310532,1736441447109,-1000.0,0.00010005,2]
[348310534,1736441447119,-882.79282991,0.00010014,2]
[348310535,1736441447128,-150.0,0.00010061,2]
[348310536,1736441447137,-500.0,0.00010069,2]
[348310537,1736441447147,-855.78,0.00010069,2]
[348310538,1736441447156,-500.0,0.00010069,2]
[348310539,1736441447165,-500.0,0.00010069,2]
[348310540,1736441447174,-500.0,0.00010069,2]
[348310541,1736441447183,-500.0,0.00010069,2]
[348310542,1736441447193,-1371.03,0.00010069,2]
[348310544,1736441447202,-500.0,0.00010069,2]
[348310546,1736441447211,-782.88,0.00010069,2]
[348310548,1736441447221,-889.52,0.00010069,2]
[348310550,1736441447230,-975.12,0.00010069,2]
[348310552,1736441447239,-650.21,0.00010069,2]
[348310554,1736441447248,-509.6,0.00010069,2]
[348310556,1736441447259,-500.0,0.00010069,2]
[348310558,1736441447269,-500.0,0.00010069,2]
[348310560,1736441447278,-500.82,0.00010069,2]
[348310562,1736441447287,-500.0,0.00010069,2]
[348310564,1736441447296,-500.0,0.00010069,2]
[348310566,1736441447306,-500.0,0.00010069,2]
[348310568,1736441447316,-500.0,0.00010069,2]
[348310570,1736441447325,-500.0,0.00010069,2]
[348310572,1736441447334,-1339.65,0.00010069,2]
[348310574,1736441447343,-1337.58,0.00010069,2]
[348310576,1736441447353,-500.0,0.00010069,2]
[348310578,1736441447362,-1238.69,0.00010069,2]
[348310580,1736441447372,-500.0,0.00010069,2]
[348310582,1736441447381,-500.0,0.00010069,2]
[348310584,1736441447390,-500.0,0.00010069,2]
[348310586,1736441447400,-500.0,0.00010069,2]
[348310588,1736441447409,-500.0,0.00010069,2]
[348310590,1736441447419,-500.0,0.00010069,2]
[348310592,1736441447429,-500.0,0.00010069,2]
[348310594,1736441447438,-500.0,0.00010069,2]
[348310596,1736441447448,-500.0,0.00010069,2]
[348310598,1736441447459,-591.57,0.00010069,2]
[348310600,1736441447469,-500.0,0.00010069,2]
[348310602,1736441447479,-616.25,0.00010069,2]
[348310604,1736441447490,-500.0,0.00010069,2]
[348310606,1736441447499,-500.0,0.00010069,2]
[348310608,1736441447508,-1572.29,0.00010069,2]
[348310610,1736441447517,-1702.64,0.00010069,2]
[348310612,1736441447526,-500.0,0.00010069,2]
[348310614,1736441447536,-809.26,0.00010069,2]
[348310616,1736441447545,-500.0,0.00010069,2]
[348310618,1736441447556,-500.0,0.00010069,2]
[348310620,1736441447565,-500.0,0.00010069,2]
[348310622,1736441447574,-1577.43,0.00010069,2]
[348310624,1736441447584,-635.34,0.00010069,2]
[348310626,1736441447594,-500.0,0.00010069,2]
[348310628,1736441447603,-500.0,0.00010069,2]
[348310630,1736441447613,-502.33613823,0.00010069,2]
[348310632,1736441447622,-500.0,0.00010069,2]
[348310634,1736441447632,-500.0,0.00010069,2]
[348310636,1736441447641,-1568.5,0.00010069,2]
[348310638,1736441447650,-500.0,0.00010069,2]
[348310640,1736441447660,-604.17,0.00010069,2]
[348310642,1736441447670,-652.54,0.00010069,2]
[348310644,1736441447682,-500.0,0.00010069,2]
[348310646,1736441447691,-500.0,0.00010069,2]
[348310648,1736441447703,-502.70990708,0.00010069,2]
[348310650,1736441447712,-302.03,0.00010069,2]
[348310652,1736441447722,-534.02,0.00010069,2]
[348310654,1736441447731,-500.0,0.00010069,2]
[348310656,1736441447741,-500.0,0.00010069,2]
[348310658,1736441447751,-500.0,0.00010069,2]
[348310660,1736441447760,-500.0,0.00010069,2]
[348310662,1736441447769,-500.0,0.00010069,2]
[348310664,1736441447778,-592.25,0.00010069,2]
[348310666,1736441447787,-500.0,0.00010069,2]
[348310668,1736441447797,-500.0,0.00010069,2]
[348310670,1736441447807,-500.0,0.00010069,2]
[348310672,1736441447817,-628.84671779,0.00010069,2]
[348310674,1736441447827,-500.0,0.00010069,2]
[348310676,1736441447836,-500.0,0.00010069,2]
[348310678,1736441447846,-500.0,0.00010069,2]
[348310679,1736441447856,-1683.15,0.00010069,2]
[348310680,1736441447865,-500.0,0.00010069,2]
[348310681,1736441447876,-500.0,0.00010069,2]
[348310682,1736441447886,-500.0,0.00010069,2]
[348310683,1736441447895,-500.0,0.00010069,2]
[348310684,1736441447905,-500.0,0.00010069,2]
[348310685,1736441447915,-961.33,0.00010069,2]
[348310686,1736441447924,-500.0,0.00010069,2]
[348310687,1736441447934,-500.0,0.00010069,2]
[348310688,1736441447943,-500.0,0.00010069,2]
[348310689,1736441447953,-500.0,0.00010069,2]
[348310690,1736441447963,-500.0,0.00010069,2]
[348310691,1736441447973,-500.0,0.00010069,2]
[348310692,1736441447982,-500.0,0.00010069,2]
[348310693,1736441447991,-1144.19,0.00010069,2]
[348310694,1736441448001,-1110.03,0.00010069,2]
[348310695,1736441448011,-1249.95,0.00010069,2]
[348310696,1736441448021,-515.87,0.00010069,2]
[348310697,1736441448031,-5260.72,0.00010069,2]
[348310698,1736441448041,-500.0,0.00010069,2]
[348310699,1736441448051,-500.0,0.00010069,2]
[348310700,1736441448061,-500.0,0.00010069,2]
[348310701,1736441448072,-500.0,0.00010069,2]
[348310702,1736441448081,-2184.19,0.00010069,2]
[348310703,1736441448091,-500.0,0.00010069,2]
[348310704,1736441448101,-685.22,0.00010069,2]
[348310705,1736441448111,-500.0,0.00010069,2]
[348310706,1736441448121,-3800.29,0.00010069,2]
[348310707,1736441448131,-500.0,0.00010069,2]